fUST/lending_fUST_20240721
["ID","MTS","AMOUNT","RATE_DAILY","PERIOD"]
[332764555,1721508642200,-500.0,0.00013698,2]
[332764556,1721508642209,-660.14,0.00013698,2]
[332764557,1721508642219,-500.0,0.00013698,2]
[332764558,1721508642228,-500.0,0.00013698,2]
[332764559,1721508642237,-500.0,0.00013698,2]
[332764560,1721508642246,-500.0,0.00013698,2]
[332764561,1721508642255,-548.2092026,0.00013698,2]
[332764562,1721508642265,-500.0,0.00013698,2]
[332764563,1721508642275,-500.0,0.00013698,2]
[332764564,1721508642285,-500.0,0.00013698,2]
[332764565,1721508642295,-500.0,0.00013698,2]
[332764566,1721508642303,-500.0,0.00013698,2]
[332764567,1721508642312,-2154.81,0.00013698,2]
[332764568,1721508642322,-3543.88,0.00013698,2]
[332764569,1721508642331,-548.75997375,0.00013698,2]
[332764570,1721508642341,-500.0,0.00013698,2]
[332764571,1721508642351,-501.15558744,0.00013698,2]
[332764572,1721508642362,-500.0,0.00013698,2]
[332764573,1721508642372,-500.0,0.00013698,2]
[332764574,1721508642381,-500.0,0.00013698,2]
[332764575,1721508642391,-500.0,0.00013698,2]
[332764576,1721508642400,-501.77387035,0.00013698,2]
[332764577,1721508642411,-1454.6,0.00013698,2]
[332764578,1721508642420,-8312.4,0.00013698,2]
[332764579,1721508642429,-500.0,0.00013698,2]
[332764580,1721508642438,-894.43,0.00013698,2]
[332764581,1721508642447,-571.89745073,0.00013698,2]
[332764582,1721508642456,-456.093618,0.00013698,2]
[332764583,1721508642465,-500.0,0.00013698,2]
[332764584,1721508642474,-518.49437446,0.00013698,2]
[332764585,1721508642484,-500.0,0.00013698,2]
[332764586,1721508642493,-500.08985855,0.00013698,2]
[332764587,1721508642502,-1940.23,0.00013698,2]
[332764588,1721508642511,-717.4,0.00013698,2]
[332764589,1721508642521,-570.53,0.00013698,2]
[332764590,1721508642530,-500.0,0.00013698,2]
[332764591,1721508642539,-500.0,0.00013698,2]
[332764592,1721508642549,-503.08189526,0.00013698,2]
[332764593,1721508642558,-500.0,0.00013698,2]
[332764594,1721508642568,-4361.09,0.00013698,2]
[332764595,1721508642577,-500.0,0.00013698,2]
[332764596,1721508642586,-746.07,0.00013698,2]
[332764597,1721508642596,-500.0,0.00013698,2]
[332764598,1721508642605,-1134.6,0.00013698,2]
[332764599,1721508642614,-500.0,0.00013698,2]
[332764600,1721508642623,-500.0,0.00013698,2]
[332764601,1721508642633,-502.92442484,0.00013698,2]
[332764602,1721508642643,-2713.02,0.00013698,2]
[332764603,1721508642651,-2310.99,0.00013698,2]
[332764604,1721508642661,-500.0,0.00013698,2]
[332764606,1721508642670,-3329.56,0.00013698,2]
[332764607,1721508642680,-698.5,0.00013698,2]
[332764608,1721508642689,-500.0,0.00013698,2]
[332764609,1721508642699,-500.0,0.00013698,2]
[332764610,1721508642710,-1000.15,0.00013698,2]
[332764612,1721508642719,-500.0,0.00013698,2]
[332764614,1721508642729,-502.26881878,0.00013698,2]
[332764616,1721508642739,-500.0,0.00013698,2]
[332764618,1721508642751,-500.0,0.00013698,2]
[332764620,1721508642760,-500.0,0.00013698,2]
[332764622,1721508642771,-500.0,0.00013698,2]
[332764625,1721508642782,-500.0,0.00013698,2]
[332764627,1721508642792,-500.0,0.00013698,2]
[332764629,1721508642802,-500.0,0.00013698,2]
[332764631,1721508642811,-500.0,0.00013698,2]
[332764634,1721508642820,-500.0,0.00013698,2]
[332764637,1721508642830,-500.0,0.00013698,2]
[332764638,1721508642839,-500.0,0.00013698,2]
[332764641,1721508642848,-500.0,0.00013698,2]
[332764643,1721508642858,-3309.35,0.00013698,2]
[332764645,1721508642867,-500.0,0.00013698,2]
[332764648,1721508642877,-500.0,0.00013698,2]
[332764651,1721508642886,-500.0,0.00013698,2]
[332764653,1721508642897,-500.0,0.00013698,2]
[332764654,1721508642907,-500.0,0.00013698,2]
[332764656,1721508642928,-500.0,0.00013698,2]
[332764657,1721508642950,-500.0,0.00013698,2]
[332764658,1721508642960,-500.0,0.00013698,2]
[332764659,1721508642969,-500.0,0.00013698,2]
[332764660,1721508642978,-500.0,0.00013698,2]
[332764662,1721508642988,-545.29737027,0.00013698,2]
[332764663,1721508642998,-615.43055674,0.00013698,2]
[332764664,1721508643007,-500.7278879,0.00013698,2]
[332764665,1721508643017,-500.0,0.00013698,2]
[332764666,1721508643026,-500.0,0.00013698,2]
[332764667,1721508643035,-2195.11,0.00013698,2]
[332764668,1721508643046,-500.0,0.00013698,2]
[332764669,1721508643055,-501.3438523,0.00013698,2]
[332764670,1721508643069,-500.0,0.00013698,2]
[332764671,1721508643080,-500.0,0.00013698,2]
[332764672,1721508643089,-502.86855471,0.00013698,2]
[332764674,1721508643099,-500.0,0.00013698,2]
[332764676,1721508643108,-504.35,0.00013698,2]
[332764678,1721508643118,-500.0,0.00013698,2]
[332764679,1721508643127,-500.0,0.00013698,2]
[332764680,1721508643136,-500.0,0.00013698,2]
[332764682,1721508643145,-500.0,0.00013698,2]
[332764684,1721508643154,-642.05,0.00013698,2]
[332764685,1721508643164,-598.68,0.00013698,2]
[332764687,1721508643173,-1499.84,0.00013698,2]
[332764688,1721508643182,-500.0,0.00013698,2]
[332764689,1721508643191,-500.0,0.00013698,2]
[332764690,1721508643201,-500.0,0.00013698,2]
[332764691,1721508643210,-505.7857432,0.00013698,2]
[332764692,1721508643220,-500.0,0.00013698,2]
[332764693,1721508643229,-1719.89,0.00013698,2]
[332764694,1721508643238,-500.0,0.00013698,2]
[332764695,1721508643247,-500.0,0.00013698,2]
[332764697,1721508643256,-500.0,0.00013698,2]
[332764699,1721508643265,-500.0,0.00013698,2]
[332764701,1721508643274,-1108.68,0.00013698,2]
[332764703,1721508643284,-500.0,0.00013698,2]
[332764704,1721508643293,-500.0,0.00013698,2]
[332764705,1721508643303,-500.0,0.00013698,2]
[332764706,1721508643312,-503.42,0.00013698,2]
[332764707,1721508643322,-2328.09,0.00013698,2]
[332764708,1721508643331,-503.42,0.00013698,2]
[332764709,1721508643339,-503.42,0.00013698,2]
[332764710,1721508643349,-503.42,0.00013698,2]
[332764711,1721508643358,-503.42,0.00013698,2]
[332764712,1721508643368,-503.42,0.00013698,2]
[332764713,1721508643377,-503.42,0.00013698,2]
[332764714,1721508643386,-500.0,0.00013698,2]
[332764715,1721508643395,-503.42,0.00013698,2]
[332764716,1721508643404,-503.42,0.00013698,2]
[332764717,1721508643413,-910.55,0.00013698,2]
[332764718,1721508643422,-500.0,0.00013698,2]
[332764720,1721508643432,-845.78,0.00013698,2]
[332764721,1721508643441,-500.0,0.00013698,2]
[332764722,1721508643450,-500.0,0.00013698,2]
[332764723,1721508643459,-612.71,0.00013698,2]
[332764724,1721508643468,-5035.15,0.00013698,2]
[332764725,1721508643478,-624.22,0.00013698,2]
[332764726,1721508643486,-500.0,0.00013698,2]
[332764727,1721508643496,-539.26,0.00013698,2]
[332764728,1721508643505,-500.0,0.00013698,2]
[332764729,1721508643514,-500.0,0.00013698,2]
[332764730,1721508643524,-8731.33,0.00013698,2]
[332764731,1721508643533,-500.0,0.00013698,2]
[332764732,1721508643543,-500.0,0.00013698,2]
[332764733,1721508643553,-500.81614324,0.00013698,2]
[332764734,1721508643562,-500.0,0.00013698,2]
[332764735,1721508643572,-564.28,0.00013698,2]
[332764736,1721508643582,-500.0,0.00013698,2]
[332764737,1721508643591,-500.0,0.00013698,2]
[332764738,1721508643601,-500.0,0.00013698,2]
[332764739,1721508643610,-3507.24,0.00013698,2]
[332764740,1721508643619,-500.0,0.00013698,2]
[332764741,1721508643629,-2691.83,0.00013698,2]
[332764742,1721508643638,-500.0,0.00013698,2]
[332764743,1721508643648,-500.0,0.00013698,2]
[332764744,1721508643657,-500.0,0.00013698,2]
[332764745,1721508643666,-6952.2,0.00013698,2]
[332764746,1721508643675,-500.0,0.00013698,2]
[332764747,1721508643684,-501.29419541,0.00013698,2]
[332764748,1721508643694,-500.0,0.00013698,2]
[332764749,1721508643707,-575.82,0.00013698,2]
[332764750,1721508643716,-500.0,0.00013698,2]
[332764751,1721508643726,-1861.51,0.00013698,2]
[332764752,1721508643735,-500.0,0.00013698,2]
[332764753,1721508643745,-2932.91,0.00013698,2]
[332764754,1721508643755,-500.0,0.00013698,2]
[332764755,1721508643765,-500.0,0.00013698,2]
[332764756,1721508643776,-500.0,0.00013698,2]
[332764757,1721508643785,-500.0,0.00013698,2]
[332764758,1721508643795,-500.0,0.00013698,2]
[332764759,1721508643805,-500.0,0.00013698,2]
[332764760,1721508643814,-500.0,0.00013698,2]
[332764761,1721508643824,-500.0,0.00013698,2]
[332764762,1721508643834,-500.0,0.00013698,2]
[332764763,1721508643843,-500.0,0.00013698,2]
[332764764,1721508643852,-500.0,0.00013698,2]
[332764765,1721508643861,-500.0,0.00013698,2]
[332764766,1721508643870,-243.42190071,0.00013698,2]
[332764767,1721508643879,-636.8,0.00013698,2]
[332764768,1721508643888,-500.0,0.00013698,2]
[332764769,1721508643898,-500.0,0.00013698,2]
[332764770,1721508643907,-500.0,0.00013698,2]
[332764771,1721508643918,-2044.79,0.00013698,2]
[332764772,1721508643930,-500.0,0.00013698,2]
[332764773,1721508643941,-500.0,0.00013698,2]
[332764774,1721508643952,-500.0,0.00013698,2]
[332764775,1721508643962,-500.0,0.00013698,2]
[332764776,1721508643971,-219.09698425,0.00013698,2]
[332764777,1721508643980,-500.0,0.00013698,2]
[332764778,1721508643991,-500.0,0.00013698,2]
[332764779,1721508644002,-500.0,0.00013698,2]
[332764780,1721508644012,-500.0,0.00013698,2]
[332764781,1721508644193,-4564.91,0.00013698,2]
[332764782,1721508644204,-902.99,0.00013698,2]
[332764783,1721508644213,-500.0,0.00013698,2]
[332764784,1721508644223,-1150.52,0.00013698,2]
[332764785,1721508644232,-977.51,0.00013698,2]
[332764786,1721508644242,-500.0,0.00013698,2]
[332764787,1721508644252,-573.56,0.00013698,2]
[332764788,1721508644261,-500.0,0.00013698,2]
[332764789,1721508644271,-596.72,0.00013698,2]
[332764790,1721508644280,-500.0,0.00013698,2]
[332764791,1721508644290,-500.0,0.00013698,2]
[332764792,1721508644300,-500.0,0.00013698,2]
[332764793,1721508644309,-500.0,0.00013698,2]
[332764794,1721508644319,-500.0,0.00013698,2]
[332764795,1721508644329,-500.0,0.00013698,2]
[332764796,1721508644339,-631.89,0.00013698,2]
[332764797,1721508644349,-500.0,0.00013698,2]
[332764798,1721508644361,-500.0,0.00013698,2]
[332764799,1721508644371,-500.0,0.00013698,2]
[332764800,1721508644381,-4211.07,0.00013698,2]
[332764801,1721508644390,-601.4404759,0.00013698,2]
[332764802,1721508644400,-10536.47,0.00013698,2]
[332764803,1721508644409,-500.0,0.00013698,2]
[332764804,1721508644419,-1363.05,0.00013698,2]
[332764805,1721508644429,-500.0,0.00013698,2]
[332764806,1721508644439,-509.82043443,0.00013698,2]
[332764807,1721508644449,-2383.85,0.00013698,2]
[332764808,1721508644458,-500.0,0.00013698,2]
[332764809,1721508644468,-500.0,0.00013698,2]
[332764810,1721508644478,-500.0,0.00013698,2]
[332764811,1721508644487,-987.34,0.00013698,2]
[332764812,1721508644497,-500.0,0.00013698,2]
[332764813,1721508644506,-10171.63,0.00013698,2]
[332764814,1721508644516,-555.64,0.00013698,2]
[332764815,1721508644526,-1403.7,0.00013698,2]
[332764816,1721508644536,-1883.98,0.00013698,2]
[332764817,1721508644545,-500.0,0.00013698,2]
[332764818,1721508644558,-500.0,0.00013698,2]
[332764819,1721508644567,-1797.86,0.00013698,2]
[332764820,1721508644580,-500.0,0.00013698,2]
[332764821,1721508644590,-500.0,0.00013698,2]
[332764822,1721508644600,-2455.86,0.00013698,2]
[332764823,1721508644610,-2795.92,0.00013698,2]
[332764824,1721508644619,-500.0,0.00013698,2]
[332764825,1721508644629,-504.74873459,0.00013698,2]
[332764826,1721508644639,-646.05085239,0.00013698,2]
[332764827,1721508644649,-500.0,0.00013698,2]
[332764828,1721508644660,-500.0,0.00013698,2]
[332764829,1721508644671,-500.0,0.00013698,2]
[332764830,1721508644683,-500.0,0.00013698,2]
[332764831,1721508644694,-500.0,0.00013698,2]
[332764832,1721508644709,-1080.94,0.00013698,2]
[332764833,1721508644719,-500.0,0.00013698,2]
[332764834,1721508644729,-2876.63,0.00013698,2]
[332764835,1721508644739,-500.0,0.00013698,2]
[332764836,1721508644752,-1248.49,0.00013698,2]
[332764837,1721508644763,-683.23,0.00013698,2]
[332764838,1721508644773,-150.0,0.00013698,2]
[332764839,1721508644786,-500.0,0.00013698,2]
[332764840,1721508644796,-500.0,0.00013698,2]
[332764841,1721508644809,-500.0,0.00013698,2]
[332764842,1721508644819,-500.0,0.00013698,2]
[332764843,1721508644831,-1394.74,0.00013698,2]
[332764844,1721508644841,-1053.46,0.00013698,2]
[332764845,1721508644851,-2889.74,0.00013698,2]
[332764846,1721508644862,-711.65,0.00013698,2]
[332764847,1721508644873,-500.0,0.00013698,2]
[332764848,1721508644884,-8392.29,0.00013698,2]
[332764849,1721508644895,-2528.23,0.00013698,2]
[332764850,1721508644905,-500.0,0.00013698,2]
[332764851,1721508644914,-505.79508747,0.00013698,2]
[332764852,1721508644923,-1128.71,0.00013698,2]
[332764853,1721508644933,-500.0,0.00013698,2]
[332764854,1721508644944,-211.01050047,0.00013698,2]
[332764855,1721508644953,-535.13087164,0.00013698,2]
[332764856,1721508644963,-30602.79,0.00013698,2]
[332764857,1721508644975,-505.46201646,0.00013698,2]
[332764858,1721508644986,-500.0,0.00013698,2]
[332764859,1721508644996,-500.0,0.00013698,2]
[332764860,1721508645007,-500.0,0.00013698,2]
[332764861,1721508645017,-4770.32,0.00013698,2]
[332764862,1721508645029,-500.0,0.00013698,2]
[332764863,1721508645038,-508.40747236,0.00013698,2]
[332764864,1721508645048,-4770.32,0.00013698,2]
[332764865,1721508645061,-4770.32,0.00013698,2]
[332764866,1721508645070,-4770.32,0.00013698,2]
[332764867,1721508645079,-4770.32,0.00013698,2]
[332764868,1721508645088,-4770.32,0.00013698,2]
[332764869,1721508645098,-4770.32,0.00013698,2]
[332764870,1721508645107,-4770.32,0.00013698,2]
[332764871,1721508645117,-826.33,0.00013698,2]
[332764872,1721508645127,-4770.32,0.00013698,2]
[332764873,1721508645136,-4770.32,0.00013698,2]
[332764874,1721508645145,-4770.32,0.00013698,2]
[332764875,1721508645155,-512.07655604,0.00013698,2]
[332764876,1721508645165,-4770.32,0.00013698,2]
[332764877,1721508645174,-500.0,0.00013698,2]
[332764878,1721508645183,-500.0,0.00013698,2]
[332764879,1721508645192,-4770.32,0.00013698,2]
[332764880,1721508645202,-4770.32,0.00013698,2]
[332764881,1721508645211,-4770.32,0.00013698,2]
[332764882,1721508645221,-4770.32,0.00013698,2]
[332764883,1721508645230,-4770.32,0.00013698,2]
[332764884,1721508645240,-4770.32,0.00013698,2]
[332764885,1721508645249,-500.0,0.00013698,2]
[332764886,1721508645258,-4770.32,0.00013698,2]
[332764887,1721508645267,-4770.32,0.00013698,2]
[332764888,1721508645276,-500.0,0.00013698,2]
[332764889,1721508645286,-4770.32,0.00013698,2]
[332764890,1721508645295,-500.0,0.00013698,2]
[332764891,1721508645304,-4770.32,0.00013698,2]
[332764892,1721508645314,-4770.32,0.00013698,2]
[332764893,1721508645324,-4770.37129281,0.00013698,2]
[332764894,1721508645333,-482.34424015,0.00013698,2]
[332764895,1721508645343,-261.30972445,0.00013698,2]
[332764896,1721508645352,-510.82,0.00013698,2]
[332764897,1721508645360,-1220.21,0.00013698,2]
[332764898,1721508645370,-276.89937302,0.00013698,2]
[332764899,1721508645379,-500.0,0.00013698,2]
[332764900,1721508645388,-500.0,0.00013698,2]
[332764901,1721508645398,-2897.1,0.00013698,2]
[332764902,1721508645408,-813.26,0.00013698,2]
[332764903,1721508645420,-500.0,0.00013698,2]
[332764904,1721508645429,-3177.08,0.00013698,2]
[332764905,1721508645438,-3177.08,0.00013698,2]
[332764906,1721508645447,-3177.08,0.00013698,2]
[332764907,1721508645456,-513.33275701,0.00013698,2]
[332764908,1721508645466,-3177.08,0.00013698,2]
[332764909,1721508645476,-3177.08,0.00013698,2]
[332764910,1721508645485,-500.0,0.00013698,2]
[332764911,1721508645495,-3177.08,0.00013698,2]
[332764912,1721508645504,-3177.08,0.00013698,2]
[332764914,1721508645513,-193.47418578,0.00013698,2]
[332764915,1721508645523,-3177.08,0.00013698,2]
[332764916,1721508645533,-3177.08,0.00013698,2]
[332764917,1721508645542,-1044.24,0.00013698,2]
[332764918,1721508645552,-3177.08,0.00013698,2]
[332764919,1721508645562,-3177.08,0.00013698,2]
[332764920,1721508645571,-500.0,0.00013698,2]
[332764921,1721508645581,-500.0,0.00013698,2]
[332764922,1721508645590,-554.99193017,0.00013698,2]
[332764923,1721508645599,-3177.08,0.00013698,2]
[332764924,1721508645609,-3177.08,0.00013698,2]
[332764925,1721508645618,-3177.08,0.00013698,2]
[332764926,1721508645629,-3177.08,0.00013698,2]
[332764927,1721508645638,-3177.08,0.00013698,2]
[332764929,1721508645648,-3177.08,0.00013698,2]
[332764930,1721508645658,-3177.08,0.00013698,2]
[332764931,1721508645668,-3177.08,0.00013698,2]
[332764932,1721508645678,-2115.68,0.00013698,2]
[332764933,1721508645687,-3177.08,0.00013698,2]
[332764934,1721508645698,-3177.08,0.00013698,2]
[332764935,1721508645709,-3177.08,0.00013698,2]
[332764936,1721508645719,-3177.08,0.00013698,2]
[332764937,1721508645728,-3177.14919494,0.00013698,2]
[332764938,1721508645739,-1522.47,0.00013698,2]
[332764939,1721508645748,-500.0,0.00013698,2]
[332764940,1721508645758,-500.0,0.00013698,2]
[332764941,1721508645767,-484.1569262,0.00013698,2]
[332764942,1721508645778,-500.0,0.00013698,2]
[332764943,1721508645787,-500.0,0.00013698,2]
[332764944,1721508645796,-500.0,0.00013698,2]
[332764945,1721508645806,-500.0,0.00013698,2]
[332764946,1721508645816,-500.0,0.00013698,2]
[332764947,1721508645827,-270.43895219,0.00013698,2]
[332764948,1721508645837,-883.66,0.00013698,2]
[332764949,1721508645847,-500.0,0.00013698,2]
[332764950,1721508645857,-191.2377236,0.00013698,2]
[332764951,1721508645866,-1268.18,0.00013698,2]
[332764953,1721508645877,-500.0,0.00013698,2]
[332764955,1721508645887,-500.0,0.00013698,2]
[332764957,1721508645897,-590.44,0.00013698,2]
[332764958,1721508645908,-2275.6,0.00013698,2]
[332764959,1721508645919,-635.03105591,0.00013698,2]
[332764960,1721508645929,-500.0,0.00013698,2]
[332764961,1721508645940,-13679.82,0.00013698,2]
[332764962,1721508645951,-2337.86,0.00013698,2]
[332764963,1721508645963,-2042.34,0.00013698,2]
[332764964,1721508645975,-500.0,0.00013698,2]
[332764965,1721508645986,-2209.62,0.00013698,2]
[332764966,1721508645996,-500.0,0.00013698,2]
[332764967,1721508646008,-500.0,0.00013698,2]
[332764968,1721508646020,-741.83,0.00013698,2]
[332764969,1721508646032,-500.0,0.00013698,2]
[332764970,1721508646042,-500.0,0.00013698,2]
[332764971,1721508646052,-500.0,0.00013698,2]
[332764972,1721508646061,-5656.32,0.00013698,2]
[332764973,1721508646070,-584.64,0.00013698,2]
[332764974,1721508646080,-1305.16,0.00013698,2]
[332764975,1721508646091,-500.0,0.00013698,2]
[332764976,1721508646102,-500.0,0.00013698,2]
[332764977,1721508646113,-500.0,0.00013698,2]
[332764978,1721508646124,-500.0,0.00013698,2]
[332764979,1721508646133,-500.0,0.00013698,2]
[332764980,1721508646143,-500.0,0.00013698,2]
[332764981,1721508646152,-500.0,0.00013698,2]
[332764982,1721508646161,-500.0,0.00013698,2]
[332764983,1721508646171,-500.0,0.00013698,2]
[332764984,1721508646181,-500.0,0.00013698,2]
[332764985,1721508646191,-500.0,0.00013698,2]
[332764986,1721508646201,-500.0,0.00013698,2]
[332764987,1721508646212,-500.0,0.00013698,2]
[332764988,1721508646222,-500.0,0.00013698,2]
[332764989,1721508646231,-502.57318082,0.00013698,2]
[332764990,1721508646241,-500.0,0.00013698,2]
[332764991,1721508646251,-1490.021748,0.00013699,2]
[332764992,1721508646263,-3000.0,0.00013699,2]
[332764993,1721508646274,-613.0113624,0.00013699,2]
[332764994,1721508646287,-503.42,0.00013961,2]
[332764995,1721508646301,-503.42,0.00013961,2]
[332764996,1721508646315,-503.42,0.00013971,2]
[332764997,1721508646328,-503.42,0.00013971,2]
[332764998,1721508646341,-503.42,0.00013971,2]
[332764999,1721508646352,-503.42,0.00013971,2]
[332765000,1721508646364,-503.42,0.00013971,2]
[332765001,1721508646377,-503.42,0.00013971,2]
[332765002,1721508646390,-503.42,0.00013971,2]
[332765003,1721508646402,-503.42,0.00013971,2]
[332765004,1721508646415,-503.42,0.00013971,2]
[332765005,1721508646428,-503.42,0.00013971,2]
[332765006,1721508646441,-503.42,0.00013971,2]
[332765007,1721508646454,-503.42,0.00013971,2]
[332765008,1721508646468,-503.52640636,0.00013971,2]
[332765009,1721508646481,-500.0,0.00013972,2]
[332765010,1721508646492,-500.0,0.00013972,2]
[332765011,1721508646504,-500.0,0.00013972,2]
[332765012,1721508646515,-500.0,0.00013972,2]
[332765013,1721508646528,-500.0,0.00013972,2]
[332765014,1721508646541,-500.0,0.00013972,2]
[332765015,1721508646553,-2066.42,0.00013972,2]
[332765016,1721508646565,-500.0,0.00013972,2]
[332765017,1721508646575,-500.0,0.00013972,2]
[332765018,1721508646585,-607.91,0.00013972,2]
[332765019,1721508646598,-500.0,0.00013972,2]
[332765020,1721508646608,-500.0,0.00013972,2]
[332765021,1721508646620,-626.84,0.00013972,2]
[332765022,1721508646633,-1282.57,0.00013972,2]
[332765023,1721508646645,-500.0,0.00013972,2]
[332765024,1721508646657,-500.0,0.00013972,2]
[332765025,1721508646669,-500.0,0.00013972,2]
[332765026,1721508646682,-500.0,0.00013972,2]
[332765027,1721508646695,-500.0,0.00013972,2]
[332765028,1721508646712,-500.0,0.00013972,2]
[332765029,1721508646722,-500.0,0.00013972,2]
[332765030,1721508646733,-574.73,0.00013972,2]
[332765031,1721508646744,-510.42578769,0.00013972,2]
[332765032,1721508646755,-561.72,0.00013972,2]
[332765033,1721508646766,-500.0,0.00013972,2]
[332765034,1721508646780,-500.0,0.00013972,2]
[332765035,1721508646791,-500.0,0.00013972,2]
[332765036,1721508646804,-500.0,0.00013972,2]
[332765037,1721508646814,-500.0,0.00013972,2]
[332765038,1721508646826,-500.0,0.00013972,2]
[332765039,1721508646838,-500.0,0.00013972,2]
[332765040,1721508646850,-500.0,0.00013972,2]
[332765041,1721508646865,-500.0,0.00013972,2]
[332765042,1721508646876,-500.0,0.00013972,2]
[332765043,1721508646889,-510.58623771,0.00013972,2]
[332765044,1721508646900,-500.0,0.00013972,2]
[332765045,1721508646910,-1064.01,0.00013972,2]
[332765046,1721508646923,-500.0,0.00013972,2]
[332765047,1721508646934,-500.0,0.00013972,2]
[332765048,1721508646946,-638.32,0.00013972,2]
[332765049,1721508646958,-500.0,0.00013972,2]
[332765050,1721508646970,-640.31,0.00013972,2]
[332765051,1721508646983,-562.63316697,0.00013972,2]
[332765052,1721508646996,-500.0,0.00013972,2]
[332765053,1721508647007,-500.0,0.00013972,2]
[332765054,1721508647025,-641.37526896,0.00013972,2]
[332765055,1721508647037,-500.0,0.00013972,2]
[332765056,1721508647050,-601.67470916,0.00013972,2]
[332765057,1721508647061,-501.72983271,0.00013972,2]
[332765058,1721508647073,-500.0,0.00013972,2]
[332765059,1721508647086,-500.0,0.00013972,2]
[332765060,1721508647097,-502.63355936,0.00013972,2]
[332765061,1721508647108,-500.0,0.00013972,2]
[332765062,1721508647119,-500.0,0.00013972,2]
[332765063,1721508647130,-801.47,0.00013972,2]
[332765064,1721508647141,-500.0,0.00013972,2]
[332765065,1721508647151,-500.0,0.00013972,2]
[332765066,1721508647162,-500.0,0.00013972,2]
[332765067,1721508647173,-500.0,0.00013972,2]
[332765068,1721508647183,-500.0,0.00013972,2]
[332765069,1721508647194,-500.0,0.00013972,2]
[332765070,1721508647204,-500.0,0.00013972,2]
[332765071,1721508647216,-500.0,0.00013972,2]
[332765072,1721508647229,-500.0,0.00013972,2]
[332765073,1721508647240,-827.55,0.00013972,2]
[332765074,1721508647251,-500.0,0.00013972,2]
[332765075,1721508647264,-709.52,0.00013972,2]
[332765076,1721508647276,-500.0,0.00013972,2]
[332765077,1721508647288,-901.43,0.00013972,2]
[332765078,1721508647300,-757.46,0.00013972,2]
[332765079,1721508647316,-157.78037707,0.00013972,2]
[332765080,1721508647328,-2427.53,0.00013972,2]
[332765081,1721508647340,-500.0,0.00013972,2]
[332765082,1721508647352,-500.0,0.00013972,2]
[332765083,1721508647364,-500.0,0.00013972,2]
[332765084,1721508647376,-500.0,0.00013972,2]
[332765085,1721508647387,-516.51303496,0.00013972,2]
[332765086,1721508647398,-518.24520718,0.00013972,2]
[332765087,1721508647409,-500.0,0.00013972,2]
[332765088,1721508647420,-527.43,0.00013972,2]
[332765089,1721508647432,-500.0,0.00013972,2]
[332765090,1721508647444,-500.0,0.00013972,2]
[332765091,1721508647457,-507.40824382,0.00013972,2]
[332765092,1721508647468,-500.0,0.00013972,2]
[332765093,1721508647479,-421.88467126,0.00013972,2]
[332765094,1721508647490,-500.0,0.00013972,2]
[332765095,1721508647501,-815.02,0.00013972,2]
[332765096,1721508647512,-500.0,0.00013972,2]
[332765097,1721508647523,-1495.68,0.00013972,2]